[Event "Late-Titled-Tuesday-Blitz-April-30-2024"]
[Site "Chess.com"]
[Date "2024.04.30"]
[Round "2"]
[White "MeisterJabo"]
[Black "martinmena"]
[Result "1-0"]
[WhiteElo "2454"]
[BlackElo "2119"]
[TimeControl "180+1"]
[EndTime "14:17:38 PDT"]
[Termination "MeisterJabo won by resignation"]

1. c4 {[%clk 0:03:00.9]} 1... e6 {[%clk 0:02:53.4]} 2. g3 {[%clk 0:03:00.7]}
2... d5 {[%clk 0:02:52.8]} 3. Bg2 {[%clk 0:03:01.1]} 3... Nf6 {[%clk 0:02:52.6]}
4. Nf3 {[%clk 0:03:01.2]} 4... Be7 {[%clk 0:02:51.9]} 5. O-O {[%clk 0:03:00]}
5... O-O {[%clk 0:02:52.2]} 6. d4 {[%clk 0:02:59.6]} 6... dxc4 {[%clk
0:02:52.2]} 7. Ne5 {[%clk 0:02:59.4]} 7... Nc6 {[%clk 0:02:51.4]} 8. Nxc6 {[%clk
0:03:00]} 8... bxc6 {[%clk 0:02:52.3]} 9. Na3 {[%clk 0:03:00.6]} 9... Rb8 {[%clk
0:02:34.2]} 10. Nxc4 {[%clk 0:02:59]} 10... Ba6 {[%clk 0:02:28]} 11. Ne5 {[%clk
0:02:58.6]} 11... Rb6 {[%clk 0:01:55.8]} 12. Nxc6 {[%clk 0:02:57]} 12... Qe8
{[%clk 0:01:49.8]} 13. Qc2 {[%clk 0:02:47.8]} 13... Nd5 {[%clk 0:01:37.6]} 14.
Nxe7+ {[%clk 0:02:47]} 14... Qxe7 {[%clk 0:01:38.5]} 15. a3 {[%clk 0:02:45.6]}
15... Bb5 {[%clk 0:01:23.6]} 16. Re1 {[%clk 0:02:42.9]} 16... Rc6 {[%clk
0:01:17.1]} 17. Qd1 {[%clk 0:02:33.7]} 17... a5 {[%clk 0:01:01.5]} 18. Bd2
{[%clk 0:02:33.5]} 18... Ra8 {[%clk 0:00:48.4]} 19. e4 {[%clk 0:02:33]} 19...
Nb6 {[%clk 0:00:30]} 20. Rc1 {[%clk 0:02:25.2]} 20... Rxc1 {[%clk 0:00:24.1]}
21. Qxc1 {[%clk 0:02:26.1]} 21... Nc4 {[%clk 0:00:20.4]} 22. Bc3 {[%clk
0:02:26.2]} 22... a4 {[%clk 0:00:19.2]} 23. d5 {[%clk 0:02:25.5]} 23... exd5
{[%clk 0:00:18.8]} 24. exd5 {[%clk 0:02:26.4]} 24... Qd6 {[%clk 0:00:14.5]} 25.
Qg5 {[%clk 0:02:25.9]} 25... f6 {[%clk 0:00:13.6]} 26. Qg4 {[%clk 0:02:20.4]}
26... Ne5 {[%clk 0:00:10.6]} 27. Bxe5 {[%clk 0:02:16.9]} 27... fxe5 {[%clk
0:00:11.5]} 28. Qe6+ {[%clk 0:02:16.3]} 28... Qxe6 {[%clk 0:00:09.1]} 29. dxe6
{[%clk 0:02:17.2]} 29... Rd8 {[%clk 0:00:05.4]} 30. h4 {[%clk 0:02:08]} 30...
Kf8 {[%clk 0:00:02.2]} 31. e7+ {[%clk 0:02:06.2]} 31... Kxe7 {[%clk 0:00:01.8]}
32. Rxe5+ {[%clk 0:02:06.8]} 32... Kf6 {[%clk 0:00:02.3]} 33. Rxb5 {[%clk
0:02:07.4]} 33... Rd1+ {[%clk 0:00:02.5]} 34. Kh2 {[%clk 0:02:07.3]} 34... Rd2
{[%clk 0:00:02.9]} 35. f4 {[%clk 0:02:07.5]} 35... c6 {[%clk 0:00:02.4]} 36. Rb4
{[%clk 0:02:07.6]} 36... c5 {[%clk 0:00:02.4]} 37. Rxa4 {[%clk 0:02:06]} 37...
Rxb2 {[%clk 0:00:02.8]} 38. Rc4 {[%clk 0:02:05.9]} 38... Rb5 {[%clk 0:00:02.8]}
39. a4 {[%clk 0:02:06.1]} 39... Ra5 {[%clk 0:00:03.5]} 40. Bc6 {[%clk
0:02:05.6]} 40... Ke6 {[%clk 0:00:03.2]} 41. Bb5 {[%clk 0:02:06]} 41... Kd5
{[%clk 0:00:03.8]} 42. Rc1 {[%clk 0:02:05.9]} 42... Kd4 {[%clk 0:00:03]} 43.
Rd1+ {[%clk 0:02:05.1]} 43... Kc3 {[%clk 0:00:02.4]} 44. Rd7 {[%clk 0:02:05]}
44... Kb4 {[%clk 0:00:02.6]} 45. Rxg7 {[%clk 0:02:04.9]} 45... c4 {[%clk
0:00:02.9]} 46. Rxh7 {[%clk 0:02:04.6]} 46... c3 {[%clk 0:00:03.4]} 47. Rc7
{[%clk 0:02:04.9]} 47... Kb3 {[%clk 0:00:03.6]} 48. h5 {[%clk 0:02:04.6]} 48...
c2 {[%clk 0:00:03.5]} 49. h6 {[%clk 0:02:04.7]} 49... Kb2 {[%clk 0:00:03.9]} 50.
h7 {[%clk 0:02:02.8]} 50... Ra8 {[%clk 0:00:02.7]} 51. Rxc2+ {[%clk 0:01:56.8]}
51... Kxc2 {[%clk 0:00:02.7]} 52. Bc4 {[%clk 0:01:57.7]} 52... Ra7 {[%clk
0:00:01.2]} 53. Bg8 {[%clk 0:01:58.6]} 53... Rxh7+ {[%clk 0:00:00.9]} 54. Bxh7+
{[%clk 0:01:58.8]} 54... Kc3 {[%clk 0:00:01.4]} 55. f5 {[%clk 0:01:58.9]} 55...
Kb4 {[%clk 0:00:01.8]} 56. f6 {[%clk 0:01:59.8]} 56... Kxa4 {[%clk 0:00:02.7]}
57. f7 {[%clk 0:02:00.7]} 57... Kb5 {[%clk 0:00:03.2]} 58. f8=Q {[%clk
0:02:01.6]} 58... Kc4 {[%clk 0:00:03.5]} 59. Qf4+ {[%clk 0:02:01.5]} 59... Kc3
{[%clk 0:00:03.1]} 60. Be4 {[%clk 0:02:01.3]} 60... Kb3 {[%clk 0:00:04]} 61.
Qe3+ {[%clk 0:02:01.6]} 61... Kb2 {[%clk 0:00:04.9]} 62. g4 {[%clk 0:01:59.5]}
62... Ka2 {[%clk 0:00:05.8]} 63. g5 {[%clk 0:02:00.3]} 63... Ka1 {[%clk
0:00:06.7]} 64. g6 {[%clk 0:02:01.2]} 64... Kb2 {[%clk 0:00:07.6]} 65. g7 {[%clk
0:02:01.8]} 1-0

[Event "Late-Titled-Tuesday-Blitz-April-30-2024"]
[Site "Chess.com"]
[Date "2024.04.30"]
[Round "2"]
[White "CarlosjPineror"]
[Black "Heliosis11"]
[Result "1-0"]
[WhiteElo "2695"]
[BlackElo "2394"]
[TimeControl "180+1"]
[EndTime "14:17:43 PDT"]
[Termination "CarlosjPineror won by resignation"]

1. e4 {[%clk 0:03:00.9]} 1... c5 {[%clk 0:02:58.1]} 2. Nf3 {[%clk 0:03:00.5]}
2... e6 {[%clk 0:02:58.7]} 3. d4 {[%clk 0:03:00.8]} 3... cxd4 {[%clk 0:02:59.6]}
4. Nxd4 {[%clk 0:03:01.1]} 4... Nc6 {[%clk 0:03:00.2]} 5. Nxc6 {[%clk 0:02:57]}
5... bxc6 {[%clk 0:03:01.1]} 6. Bd3 {[%clk 0:02:57.4]} 6... d5 {[%clk
0:02:58.1]} 7. O-O {[%clk 0:02:57.6]} 7... Nf6 {[%clk 0:02:56.2]} 8. Nc3 {[%clk
0:02:58.1]} 8... Be7 {[%clk 0:02:51.7]} 9. Qe2 {[%clk 0:02:57.6]} 9... O-O
{[%clk 0:02:45.7]} 10. b3 {[%clk 0:02:52.7]} 10... Nd7 {[%clk 0:02:39.2]} 11.
Na4 {[%clk 0:02:47.2]} 11... Bf6 {[%clk 0:02:38.5]} 12. Rb1 {[%clk 0:02:39.5]}
12... Qc7 {[%clk 0:02:37.6]} 13. c4 {[%clk 0:02:32.2]} 13... d4 {[%clk
0:02:27.6]} 14. f4 {[%clk 0:02:13.4]} 14... e5 {[%clk 0:02:25.9]} 15. f5 {[%clk
0:02:06.4]} 15... Be7 {[%clk 0:02:24.6]} 16. Bd2 {[%clk 0:02:03.6]} 16... f6
{[%clk 0:02:20.2]} 17. Rfc1 {[%clk 0:02:00.4]} 17... c5 {[%clk 0:02:19.2]} 18.
Qg4 {[%clk 0:01:55.3]} 18... Nb6 {[%clk 0:02:17.7]} 19. Nb2 {[%clk 0:01:52.9]}
19... Bd6 {[%clk 0:02:15]} 20. Rf1 {[%clk 0:01:33.9]} 20... Rf7 {[%clk
0:02:02.6]} 21. Rf3 {[%clk 0:01:26.7]} 21... Nd7 {[%clk 0:02:01.7]} 22. Rh3
{[%clk 0:01:24.1]} 22... Nf8 {[%clk 0:02:01.4]} 23. Rf1 {[%clk 0:01:16]} 23...
Bd7 {[%clk 0:02:00.9]} 24. b4 {[%clk 0:01:00.1]} 24... Be8 {[%clk 0:01:55.6]}
25. b5 {[%clk 0:00:57.3]} 25... a6 {[%clk 0:01:56.1]} 26. a4 {[%clk 0:00:54.7]}
26... axb5 {[%clk 0:01:56.4]} 27. cxb5 {[%clk 0:00:52.6]} 27... Kh8 {[%clk
0:01:42.5]} 28. Bc4 {[%clk 0:00:46.4]} 28... Re7 {[%clk 0:01:42.5]} 29. Bd5
{[%clk 0:00:43.5]} 29... Rb8 {[%clk 0:01:40.5]} 30. Nc4 {[%clk 0:00:44.1]} 30...
Bf7 {[%clk 0:01:38.7]} 31. b6 {[%clk 0:00:41.9]} 31... Rxb6 {[%clk 0:01:30.2]}
32. Bxf7 {[%clk 0:00:38.8]} 32... Rxf7 {[%clk 0:01:24.5]} 33. Ba5 {[%clk
0:00:39.4]} 33... Nd7 {[%clk 0:01:00.3]} 34. Qh5 {[%clk 0:00:39.3]} 34... Kg8
{[%clk 0:00:51.3]} 35. Qxh7+ {[%clk 0:00:37.7]} 35... Kf8 {[%clk 0:00:51.5]} 36.
Qh8+ {[%clk 0:00:33.3]} 36... Ke7 {[%clk 0:00:50.9]} 37. Rh7 {[%clk 0:00:34]}
37... Qb8 {[%clk 0:00:47.5]} 38. Bxb6 {[%clk 0:00:32.6]} 38... Rf8 {[%clk
0:00:32.5]} 39. Qxg7+ {[%clk 0:00:30.6]} 1-0

[Event "Late-Titled-Tuesday-Blitz-April-30-2024"]
[Site "Chess.com"]
[Date "2024.04.30"]
[Round "2"]
[White "FedaMaster"]
[Black "FabianoCaruana"]
[Result "0-1"]
[WhiteElo "2640"]
[BlackElo "3097"]
[TimeControl "180+1"]
[EndTime "14:17:46 PDT"]
[Termination "FabianoCaruana won by resignation"]

1. e4 {[%clk 0:03:00.9]} 1... c5 {[%clk 0:02:59.2]} 2. d4 {[%clk 0:02:59.9]}
2... cxd4 {[%clk 0:02:59]} 3. c3 {[%clk 0:03:00.8]} 3... dxc3 {[%clk 0:02:58.3]}
4. Nxc3 {[%clk 0:03:01.7]} 4... Nc6 {[%clk 0:02:57.2]} 5. Nf3 {[%clk 0:03:02.6]}
5... e6 {[%clk 0:02:56.6]} 6. Bc4 {[%clk 0:03:03.5]} 6... Nge7 {[%clk
0:02:56.1]} 7. Bg5 {[%clk 0:02:31.1]} 7... f6 {[%clk 0:02:52.2]} 8. Be3 {[%clk
0:02:30.8]} 8... Ng6 {[%clk 0:02:51.7]} 9. Nd4 {[%clk 0:02:16.7]} 9... Be7
{[%clk 0:02:43.5]} 10. f4 {[%clk 0:02:10.6]} 10... O-O {[%clk 0:02:39.5]} 11. f5
{[%clk 0:01:58.2]} 11... Nge5 {[%clk 0:02:39.4]} 12. Bb3 {[%clk 0:01:58.4]}
12... Kh8 {[%clk 0:02:32.1]} 13. O-O {[%clk 0:01:54.1]} 13... Nxd4 {[%clk
0:01:50.3]} 14. Qxd4 {[%clk 0:01:38.3]} 14... b6 {[%clk 0:01:48.6]} 15. Rad1
{[%clk 0:01:36.2]} 15... Ba6 {[%clk 0:01:45.1]} 16. Rf4 {[%clk 0:01:30.3]} 16...
Nd3 {[%clk 0:01:24.5]} 17. Rh4 {[%clk 0:01:04.4]} 17... Bc5 {[%clk 0:01:20.2]}
18. Qxd3 {[%clk 0:00:53.1]} 18... Bxd3 {[%clk 0:01:19.1]} 19. Rxd3 {[%clk
0:00:54]} 19... Qc7 {[%clk 0:01:13.7]} 20. fxe6 {[%clk 0:00:42.9]} 20... dxe6
{[%clk 0:01:14.6]} 21. Bxe6 {[%clk 0:00:39]} 21... Rad8 {[%clk 0:01:11.3]} 22.
Nd5 {[%clk 0:00:35.5]} 22... Bxe3+ {[%clk 0:01:10]} 23. Rxe3 {[%clk 0:00:36.1]}
23... Qc1+ {[%clk 0:01:09.6]} 24. Kf2 {[%clk 0:00:35.9]} 24... Qxb2+ {[%clk
0:01:06.5]} 25. Kf1 {[%clk 0:00:20.2]} 25... Qa1+ {[%clk 0:01:02.2]} 26. Kf2
{[%clk 0:00:18.8]} 26... Qd4 {[%clk 0:00:56.9]} 27. Ke2 {[%clk 0:00:18.1]} 27...
g5 {[%clk 0:00:51.9]} 28. Rh6 {[%clk 0:00:17.1]} 28... Kg7 {[%clk 0:00:44.2]}
29. Reh3 {[%clk 0:00:16.8]} 29... Qxe4+ {[%clk 0:00:44.1]} 30. Ne3 {[%clk
0:00:17]} 30... Qxe6 {[%clk 0:00:35.6]} 31. Rxh7+ {[%clk 0:00:16.4]} 31... Kg8
{[%clk 0:00:36]} 32. Rh8+ {[%clk 0:00:14.1]} 32... Kf7 {[%clk 0:00:36.2]} 33.
R3h7+ {[%clk 0:00:14.5]} 33... Ke8 {[%clk 0:00:36.1]} 0-1

[Event "Late-Titled-Tuesday-Blitz-April-30-2024"]
[Site "Chess.com"]
[Date "2024.04.30"]
[Round "2"]
[White "ELPRIMO0O0"]
[Black "MatthewG-p4p"]
[Result "0-1"]
[WhiteElo "2564"]
[BlackElo "2853"]
[TimeControl "180+1"]
[EndTime "14:17:48 PDT"]
[Termination "MatthewG-p4p won by checkmate"]

1. e4 {[%clk 0:03:00.9]} 1... e6 {[%clk 0:02:57]} 2. d4 {[%clk 0:03:00.4]} 2...
d5 {[%clk 0:02:57.9]} 3. Nc3 {[%clk 0:03:00.6]} 3... Bb4 {[%clk 0:02:57.8]} 4.
e5 {[%clk 0:03:00.8]} 4... Ne7 {[%clk 0:02:58.5]} 5. a3 {[%clk 0:02:59]} 5...
Bxc3+ {[%clk 0:02:58.7]} 6. bxc3 {[%clk 0:02:59.9]} 6... c5 {[%clk 0:02:59.6]}
7. Qg4 {[%clk 0:02:59.5]} 7... cxd4 {[%clk 0:02:58.1]} 8. Qxg7 {[%clk
0:02:51.4]} 8... Rg8 {[%clk 0:02:58.1]} 9. Qxh7 {[%clk 0:02:51.7]} 9... Qc7
{[%clk 0:02:59]} 10. Ne2 {[%clk 0:02:51.6]} 10... Nbc6 {[%clk 0:02:58.9]} 11. f4
{[%clk 0:02:50.1]} 11... Bd7 {[%clk 0:02:58.8]} 12. h4 {[%clk 0:02:49.7]} 12...
dxc3 {[%clk 0:02:56.7]} 13. h5 {[%clk 0:02:49.5]} 13... O-O-O {[%clk 0:02:56.8]}
14. Qd3 {[%clk 0:02:49.4]} 14... d4 {[%clk 0:02:44]} 15. h6 {[%clk 0:02:32.2]}
15... Qb6 {[%clk 0:02:43]} 16. h7 {[%clk 0:02:30.6]} 16... Rh8 {[%clk
0:02:42.5]} 17. Ng3 {[%clk 0:02:13.5]} 17... Nd5 {[%clk 0:02:19.7]} 18. Ne4
{[%clk 0:02:12.9]} 18... Kb8 {[%clk 0:02:18.4]} 19. Nd6 {[%clk 0:02:06.4]} 19...
Be8 {[%clk 0:02:14.6]} 20. g3 {[%clk 0:01:54.4]} 20... f5 {[%clk 0:02:08.9]} 21.
Bg2 {[%clk 0:01:43.6]} 21... Nce7 {[%clk 0:02:05.6]} 22. Kf2 {[%clk 0:01:23.1]}
22... Bg6 {[%clk 0:01:46.1]} 23. Bxd5 {[%clk 0:01:21.9]} 23... Nxd5 {[%clk
0:01:45]} 24. Rh6 {[%clk 0:01:21.9]} 24... Rxh7 {[%clk 0:01:00.4]} 25. Rxg6
{[%clk 0:01:21.6]} 25... Ne3 {[%clk 0:00:58.9]} 26. Qb5 {[%clk 0:00:15.9]} 26...
Rh2+ {[%clk 0:00:53.1]} 27. Kf3 {[%clk 0:00:15.7]} 27... Nxc2 {[%clk 0:00:21.4]}
28. Qxb6 {[%clk 0:00:15.1]} 28... Ne1# {[%clk 0:00:21.4]} 0-1

[Event "Late-Titled-Tuesday-Blitz-April-30-2024"]
[Site "Chess.com"]
[Date "2024.04.30"]
[Round "2"]
[White "jaramsdal"]
[Black "Jarming"]
[Result "0-1"]
[WhiteElo "2380"]
[BlackElo "2684"]
[TimeControl "180+1"]
[EndTime "14:17:50 PDT"]
[Termination "Jarming won by resignation"]

1. e4 {[%clk 0:03:00.9]} 1... c6 {[%clk 0:02:55.9]} 2. Nf3 {[%clk 0:02:58.4]}
2... d5 {[%clk 0:02:55.2]} 3. exd5 {[%clk 0:02:59.3]} 3... cxd5 {[%clk 0:02:56]}
4. Ne5 {[%clk 0:02:59.7]} 4... Nc6 {[%clk 0:02:55.5]} 5. Bb5 {[%clk 0:03:00]}
5... Bd7 {[%clk 0:02:52.1]} 6. Nxd7 {[%clk 0:03:00.3]} 6... Qxd7 {[%clk
0:02:53]} 7. O-O {[%clk 0:03:00.8]} 7... e6 {[%clk 0:02:53.3]} 8. d4 {[%clk
0:03:00.2]} 8... Bd6 {[%clk 0:02:52.4]} 9. c3 {[%clk 0:02:59.2]} 9... Nge7
{[%clk 0:02:52.3]} 10. Bd3 {[%clk 0:02:53]} 10... O-O {[%clk 0:02:52.1]} 11. Qh5
{[%clk 0:02:47.7]} 11... f5 {[%clk 0:02:39.2]} 12. Nd2 {[%clk 0:02:26]} 12... e5
{[%clk 0:02:38.4]} 13. dxe5 {[%clk 0:02:25.2]} 13... Nxe5 {[%clk 0:02:39.3]} 14.
Bc2 {[%clk 0:02:18.6]} 14... Qc7 {[%clk 0:02:38.1]} 15. h3 {[%clk 0:02:05.1]}
15... Kh8 {[%clk 0:02:33.2]} 16. Nb3 {[%clk 0:01:47.3]} 16... N7g6 {[%clk
0:02:15.5]} 17. Nd4 {[%clk 0:01:44.9]} 17... f4 {[%clk 0:02:11.4]} 18. Ne6
{[%clk 0:01:37.9]} 18... Qf7 {[%clk 0:02:06.8]} 19. Nxf8 {[%clk 0:01:35.8]}
19... Rxf8 {[%clk 0:02:07.7]} 20. Rd1 {[%clk 0:01:14.9]} 20... f3 {[%clk
0:02:06.1]} 21. Bxg6 {[%clk 0:01:13.9]} 21... Nxg6 {[%clk 0:02:02.5]} 22. Qxd5
{[%clk 0:01:10.3]} 22... Qxd5 {[%clk 0:01:52.4]} 23. Rxd5 {[%clk 0:01:11.2]}
23... Bc7 {[%clk 0:01:52.3]} 24. g3 {[%clk 0:01:09.2]} 24... Bb6 {[%clk
0:01:50.3]} 25. a4 {[%clk 0:01:02.6]} 25... a5 {[%clk 0:01:43.4]} 26. c4 {[%clk
0:01:02.3]} 26... h6 {[%clk 0:01:41.2]} 27. c5 {[%clk 0:01:02]} 27... Ne7 {[%clk
0:01:37.2]} 28. Rh5 {[%clk 0:00:57.8]} 28... Bc7 {[%clk 0:01:32.9]} 29. Bd2
{[%clk 0:00:52.2]} 29... Kh7 {[%clk 0:01:25.8]} 30. Re1 {[%clk 0:00:44.2]} 30...
Nf5 {[%clk 0:01:18.6]} 31. Re6 {[%clk 0:00:25.9]} 31... Rf7 {[%clk 0:01:13.1]}
32. g4 {[%clk 0:00:21.1]} 32... Nd4 {[%clk 0:01:05.9]} 33. Re4 {[%clk
0:00:15.9]} 33... Rd7 {[%clk 0:00:58.6]} 34. g5 {[%clk 0:00:15.8]} 34... Ne2+
{[%clk 0:00:49.2]} 35. Kf1 {[%clk 0:00:16.1]} 35... Kg6 {[%clk 0:00:47.3]} 36.
Reh4 {[%clk 0:00:04.4]} 36... Rxd2 {[%clk 0:00:46.2]} 0-1

[Event "Late-Titled-Tuesday-Blitz-April-30-2024"]
[Site "Chess.com"]
[Date "2024.04.30"]
[Round "2"]
[White "emeli_chess"]
[Black "Zhigalko_Sergei"]
[Result "0-1"]
[WhiteElo "2473"]
[BlackElo "2869"]
[TimeControl "180+1"]
[EndTime "14:18:02 PDT"]
[Termination "Zhigalko_Sergei won by resignation"]

1. d4 {[%clk 0:03:00.9]} 1... Nf6 {[%clk 0:02:59.5]} 2. c4 {[%clk 0:03:00.9]}
2... e6 {[%clk 0:02:57.7]} 3. Nc3 {[%clk 0:03:00.6]} 3... Bb4 {[%clk 0:02:57.4]}
4. Qc2 {[%clk 0:03:00.9]} 4... O-O {[%clk 0:02:57.3]} 5. a3 {[%clk 0:02:59.3]}
5... Bxc3+ {[%clk 0:02:57.2]} 6. Qxc3 {[%clk 0:02:59.8]} 6... d6 {[%clk
0:02:57.7]} 7. Nf3 {[%clk 0:02:57]} 7... b6 {[%clk 0:02:57.2]} 8. b3 {[%clk
0:02:56.7]} 8... Bb7 {[%clk 0:02:57.4]} 9. Bb2 {[%clk 0:02:55.4]} 9... Nbd7
{[%clk 0:02:57.8]} 10. e3 {[%clk 0:02:54.9]} 10... Ne4 {[%clk 0:02:57.8]} 11.
Qc2 {[%clk 0:02:54.5]} 11... f5 {[%clk 0:02:58.4]} 12. Be2 {[%clk 0:02:54.2]}
12... Rf6 {[%clk 0:02:57.8]} 13. O-O {[%clk 0:02:51.3]} 13... Rg6 {[%clk
0:02:57.9]} 14. Rad1 {[%clk 0:02:50.3]} 14... Qe7 {[%clk 0:02:57.3]} 15. d5
{[%clk 0:02:49.4]} 15... c5 {[%clk 0:02:57.6]} 16. Ne1 {[%clk 0:02:29]} 16...
Qh4 {[%clk 0:02:27.5]} 17. f3 {[%clk 0:02:26.2]} 17... Ng5 {[%clk 0:02:04.9]}
18. g3 {[%clk 0:02:05.8]} 18... Qh6 {[%clk 0:01:43.4]} 19. Bd3 {[%clk 0:01:58]}
19... Rf8 {[%clk 0:01:24.6]} 20. Ng2 {[%clk 0:01:48.7]} 20... Ne5 {[%clk
0:01:15.4]} 21. Nh4 {[%clk 0:01:44.2]} 21... exd5 {[%clk 0:00:59]} 22. Bxf5
{[%clk 0:01:36.7]} 22... Rgf6 {[%clk 0:00:47]} 23. f4 {[%clk 0:01:18.2]} 23...
Rxf5 {[%clk 0:00:45.8]} 24. Nxf5 {[%clk 0:01:03.7]} 24... Ngf3+ {[%clk
0:00:20.9]} 25. Kh1 {[%clk 0:00:45.8]} 25... Rxf5 {[%clk 0:00:20.8]} 26. fxe5
{[%clk 0:00:39.6]} 26... d4 {[%clk 0:00:19.2]} 27. e4 {[%clk 0:00:38]} 27...
Bxe4 {[%clk 0:00:19]} 28. Qg2 {[%clk 0:00:32]} 28... Nxh2 {[%clk 0:00:12.6]} 29.
Rxf5 {[%clk 0:00:25]} 29... Nf3+ {[%clk 0:00:09]} 0-1

[Event "Late-Titled-Tuesday-Blitz-April-30-2024"]
[Site "Chess.com"]
[Date "2024.04.30"]
[Round "2"]
[White "kinga2008"]
[Black "Sacbutt"]
[Result "1-0"]
[WhiteElo "2512"]
[BlackElo "2282"]
[TimeControl "180+1"]
[EndTime "14:18:04 PDT"]
[Termination "kinga2008 won by checkmate"]

1. e4 {[%clk 0:03:00.9]} 1... c5 {[%clk 0:02:59]} 2. Nf3 {[%clk 0:03:01.5]} 2...
d6 {[%clk 0:02:59.1]} 3. Nc3 {[%clk 0:03:01.9]} 3... Nf6 {[%clk 0:02:59.5]} 4.
Bb5+ {[%clk 0:03:02]} 4... Bd7 {[%clk 0:02:59.3]} 5. Bxd7+ {[%clk 0:03:02.9]}
5... Qxd7 {[%clk 0:02:58.7]} 6. O-O {[%clk 0:03:03.8]} 6... g6 {[%clk
0:02:58.8]} 7. d4 {[%clk 0:03:04.7]} 7... cxd4 {[%clk 0:02:58.6]} 8. Qxd4 {[%clk
0:03:05.3]} 8... Bg7 {[%clk 0:02:59]} 9. e5 {[%clk 0:03:05.2]} 9... dxe5 {[%clk
0:02:58]} 10. Qxe5 {[%clk 0:03:02.6]} 10... Nc6 {[%clk 0:02:55.5]} 11. Qe2
{[%clk 0:02:59.8]} 11... O-O {[%clk 0:02:51.4]} 12. Bg5 {[%clk 0:02:59.7]} 12...
e6 {[%clk 0:02:43.5]} 13. Rad1 {[%clk 0:02:56.5]} 13... Qc7 {[%clk 0:02:32.7]}
14. Nb5 {[%clk 0:02:39.1]} 14... Qb6 {[%clk 0:02:27.8]} 15. Be3 {[%clk
0:02:38.8]} 15... Qa5 {[%clk 0:02:26.9]} 16. a3 {[%clk 0:02:32.2]} 16... Nd5
{[%clk 0:02:25.1]} 17. Bd2 {[%clk 0:02:31.4]} 17... Qb6 {[%clk 0:02:24.1]} 18.
c4 {[%clk 0:02:30.2]} 18... Nde7 {[%clk 0:02:13.2]} 19. Be3 {[%clk 0:02:29.5]}
19... Qa5 {[%clk 0:02:10.4]} 20. b4 {[%clk 0:02:28.8]} 20... Qa4 {[%clk
0:02:01]} 21. Bc5 {[%clk 0:02:08.2]} 21... a6 {[%clk 0:01:48.8]} 22. Nd6 {[%clk
0:02:03.8]} 22... b5 {[%clk 0:01:20.8]} 23. Ng5 {[%clk 0:01:54.8]} 23... bxc4
{[%clk 0:01:07.9]} 24. Ndxf7 {[%clk 0:01:48.7]} 24... Rxf7 {[%clk 0:01:06]} 25.
Qxe6 {[%clk 0:01:45]} 25... Rf8 {[%clk 0:01:05.2]} 26. Bxe7 {[%clk 0:01:15]}
26... Nxe7 {[%clk 0:01:03.8]} 27. Rd8 {[%clk 0:00:54.4]} 27... Rxd8 {[%clk
0:01:01.7]} 28. Nxf7 {[%clk 0:00:48]} 28... Rf8 {[%clk 0:00:22]} 29. Nd6+ {[%clk
0:00:47.6]} 29... Kh8 {[%clk 0:00:21.1]} 30. Qxe7 {[%clk 0:00:47.6]} 30... Qxa3
{[%clk 0:00:19.1]} 31. Qe6 {[%clk 0:00:40.7]} 31... h6 {[%clk 0:00:15.8]} 32.
Qxg6 {[%clk 0:00:35.7]} 32... Qxb4 {[%clk 0:00:15.9]} 33. Nf7+ {[%clk
0:00:35.7]} 33... Kg8 {[%clk 0:00:15.9]} 34. Nxh6+ {[%clk 0:00:35.9]} 34... Kh8
{[%clk 0:00:16.6]} 35. Nf7+ {[%clk 0:00:33.5]} 35... Kg8 {[%clk 0:00:17]} 36.
Ng5 {[%clk 0:00:34.2]} 36... Rf6 {[%clk 0:00:15.4]} 37. Qe8+ {[%clk 0:00:31]}
37... Qf8 {[%clk 0:00:14.7]} 38. Qe4 {[%clk 0:00:25.7]} 38... c3 {[%clk
0:00:13.9]} 39. Qh7# {[%clk 0:00:25.5]} 1-0

[Event "Late-Titled-Tuesday-Blitz-April-30-2024"]
[Site "Chess.com"]
[Date "2024.04.30"]
[Round "2"]
[White "bascheyaro"]
[Black "Perecke"]
[Result "1-0"]
[WhiteElo "2847"]
[BlackElo "2563"]
[TimeControl "180+1"]
[EndTime "14:18:05 PDT"]
[Termination "bascheyaro won by resignation"]

1. d4 {[%clk 0:03:00.9]} 1... Nf6 {[%clk 0:02:32.3]} 2. Nf3 {[%clk 0:02:59.3]}
2... e6 {[%clk 0:02:32.3]} 3. c4 {[%clk 0:02:59.2]} 3... d5 {[%clk 0:02:32.4]}
4. Nc3 {[%clk 0:02:59.5]} 4... dxc4 {[%clk 0:02:32.2]} 5. Bg5 {[%clk 0:02:59.6]}
5... a6 {[%clk 0:02:31.3]} 6. e3 {[%clk 0:02:59.4]} 6... b5 {[%clk 0:02:28.8]}
7. a4 {[%clk 0:02:59.7]} 7... b4 {[%clk 0:02:18.7]} 8. Na2 {[%clk 0:02:59.7]}
8... h6 {[%clk 0:02:17.3]} 9. Bxf6 {[%clk 0:02:59.2]} 9... Qxf6 {[%clk
0:02:18.2]} 10. Bxc4 {[%clk 0:02:59.4]} 10... Bb7 {[%clk 0:02:18.3]} 11. O-O
{[%clk 0:02:57.5]} 11... Bd6 {[%clk 0:02:17.8]} 12. Nc1 {[%clk 0:02:56.6]} 12...
Nd7 {[%clk 0:02:17.4]} 13. Nd3 {[%clk 0:02:49.4]} 13... O-O {[%clk 0:02:17.3]}
14. Rc1 {[%clk 0:02:49.3]} 14... Qg6 {[%clk 0:02:04.5]} 15. b3 {[%clk
0:02:44.9]} 15... e5 {[%clk 0:02:00.9]} 16. dxe5 {[%clk 0:02:31.3]} 16... Nxe5
{[%clk 0:01:43.5]} 17. Ndxe5 {[%clk 0:02:28.4]} 17... Bxe5 {[%clk 0:01:44.4]}
18. Bd5 {[%clk 0:02:26.4]} 18... Bxd5 {[%clk 0:01:36.1]} 19. Qxd5 {[%clk
0:02:27.3]} 19... Bc3 {[%clk 0:01:34.9]} 20. Rcd1 {[%clk 0:02:25.2]} 20... Rfd8
{[%clk 0:01:32.8]} 21. Qc4 {[%clk 0:01:56.2]} 21... Rxd1 {[%clk 0:01:27.2]} 22.
Rxd1 {[%clk 0:01:57.1]} 22... Qc2 {[%clk 0:01:27.3]} 23. Rf1 {[%clk 0:01:56.5]}
23... c5 {[%clk 0:01:19.9]} 24. Ne5 {[%clk 0:01:48.4]} 24... Qf5 {[%clk
0:01:06.4]} 25. Nc6 {[%clk 0:01:47.3]} 25... Kh7 {[%clk 0:01:03]} 26. g3 {[%clk
0:01:44.4]} 26... a5 {[%clk 0:00:56]} 27. Rd1 {[%clk 0:01:43.2]} 27... Qf3
{[%clk 0:00:55]} 28. Rd5 {[%clk 0:01:31.8]} 28... Be1 {[%clk 0:00:47.5]} 29.
Qc2+ {[%clk 0:01:20]} 29... g6 {[%clk 0:00:47.1]} 30. Rxc5 {[%clk 0:01:18.5]}
30... Rc8 {[%clk 0:00:47.5]} 31. Rc4 {[%clk 0:01:10.5]} 31... h5 {[%clk
0:00:22.4]} 32. Ne5 {[%clk 0:01:07.2]} 32... Rxc4 {[%clk 0:00:21.8]} 33. Nxc4
{[%clk 0:01:07.5]} 33... h4 {[%clk 0:00:21.1]} 34. gxh4 {[%clk 0:01:06.6]} 34...
Bc3 {[%clk 0:00:17.3]} 35. Qd3 {[%clk 0:01:04.4]} 35... Qg4+ {[%clk 0:00:16]}
36. Kf1 {[%clk 0:01:03.7]} 36... Qxh4 {[%clk 0:00:14.8]} 37. Qd5 {[%clk
0:00:58.4]} 37... Kg8 {[%clk 0:00:11.3]} 38. Nd6 {[%clk 0:00:58]} 38... Qf6
{[%clk 0:00:03.1]} 39. h3 {[%clk 0:00:56.5]} 39... Bb2 {[%clk 0:00:02.2]} 40.
Ke2 {[%clk 0:00:55.2]} 40... Kh7 {[%clk 0:00:01.2]} 41. Nc4 {[%clk 0:00:54.6]}
41... Bc3 {[%clk 0:00:00.5]} 42. Nxa5 {[%clk 0:00:53.6]} 42... Kg7 {[%clk
0:00:01]} 43. Nc4 {[%clk 0:00:53.6]} 43... Qh4 {[%clk 0:00:00.9]} 44. Nd6 {[%clk
0:00:52.8]} 44... Qf6 {[%clk 0:00:01.2]} 1-0